bitfinex/quotes_BTCUSD_20251124
["timestamp","ask_amount","ask_price","bid_price","bid_amount"]
[1764024921782,0.01126316,88785.0,88782.0,0.04836]
[1764024921958,0.323,88783.0,88782.0,0.04836]
[1764024922341,0.323,88783.0,88782.0,0.01923]
[1764024922977,0.01126303,88786.0,88782.0,0.04836]
[1764024923115,0.323,88785.0,88784.0,0.01923]
[1764024923316,0.323,88785.0,88783.0,0.02913]
[1764024923524,0.54826581,88784.0,88783.0,0.02913]
[1764024923722,0.22527088,88782.0,88781.0,0.01453]
[1764024923923,0.22527088,88782.0,88781.0,0.04366]
[1764024924122,0.22527088,88782.0,88781.0,0.06289]
[1764024924322,0.323,88783.0,88781.0,0.0645095]
[1764024924544,0.322682,88783.0,88782.0,0.04836]
[1764024925227,0.6658473,88791.0,88782.0,0.04836]
[1764024925477,0.01126278,88788.0,88783.0,0.02913]
[1764024925991,0.01126278,88788.0,88787.0,0.01923]
[1764024926216,0.01126265,88789.0,88787.0,0.01923]
[1764024926432,0.01126227,88792.0,88788.0,0.04836]
[1764024926713,0.323,88793.0,88788.0,0.04039278]
[1764024926880,0.323,88793.0,88792.0,0.03376]
[1764024927080,0.323,88793.0,88792.0,0.06289]
[1764024927913,0.33426176,88796.0,88792.0,0.06289]
[1764024927914,0.323,88796.0,88792.0,0.06289]
[1764024928106,0.22523012,88799.0,88792.0,0.06289]
[1764024928107,0.323,88794.0,88793.0,0.02913]
[1764024928282,0.323,88794.0,88792.0,0.01453]
[1764024928833,0.001,88793.0,88792.0,0.01453]
[1764024929496,0.54824239,88794.0,88792.0,0.01453]
[1764024929662,0.54924239,88794.0,88792.0,0.01453]
[1764024929862,0.001,88794.0,88793.0,0.01923]
[1764024930272,0.001,88794.0,88793.0,0.04836]
[1764024930474,0.001,88794.0,88793.0,0.04961265]
[1764024931001,0.323,88796.0,88793.0,0.04961265]
[1764024931174,0.323,88796.0,88795.0,0.01923]
[1764024931399,0.33426164,88797.0,88795.0,0.01823]
[1764024931599,0.33426164,88797.0,88796.0,0.04836]
[1764024932141,0.323,88797.0,88792.0,0.01453]
[1764024932345,0.33426138,88799.0,88792.0,0.01453]
[1764024933095,0.323,88799.0,88798.0,0.01923]
[1764024933296,0.67225618,88802.0,88798.0,0.01923]
[1764024933297,0.011261,88802.0,88798.0,0.01923]
[1764024933505,0.33426113,88801.0,88798.0,0.01923]
[1764024933860,0.55948577,88801.0,88798.0,0.01923]
[1764024934202,0.55948577,88801.0,88798.0,0.04836]
[1764024936026,0.55948577,88801.0,88798.0,0.01923]
[1764024937538,0.011261,88802.0,88798.0,0.01923]
[1764024937737,0.01126113,88801.0,88798.0,0.01923]
[1764024938944,0.01126113,88801.0,88794.0,0.02913]
[1764024939345,0.01126113,88801.0,88800.0,0.0010387]
[1764024939684,0.334261,88802.0,88800.0,0.0010387]
[1764024939887,0.334261,88802.0,88794.0,0.02913]
[1764024939888,0.01126113,88801.0,88794.0,0.02913]
[1764024940435,0.01126113,88801.0,88794.0,0.02924835]
[1764024940838,0.01126126,88800.0,88794.0,0.02924835]
[1764024941036,0.01126113,88801.0,88794.0,0.02924835]
[1764024942195,0.01126126,88800.0,88794.0,0.02924835]
[1764024942335,0.01126126,88800.0,88795.0,0.01453]
[1764024942780,0.01126138,88799.0,88796.0,0.02913]
[1764024942992,0.01126126,88800.0,88796.0,0.02913]
[1764024943368,0.01126113,88801.0,88796.0,0.02913]
[1764024943726,0.01126138,88799.0,88796.0,0.02913]
[1764024944005,0.23648941,88799.0,88796.0,0.02913]
[1764024944158,0.323,88800.0,88796.0,0.02913]
[1764024945476,0.323,88802.0,88799.0,0.01842]
[1764024946772,0.011261,88802.0,88799.0,0.01842]
[1764024947037,0.02267983,88803.0,88799.0,0.01842]
[1764024947359,0.011261,88802.0,88799.0,0.01842]
[1764024947606,0.03394071,88803.0,88801.0,0.00100814]
[1764024947806,0.03394071,88803.0,88799.0,0.01842]
[1764024948059,0.02267983,88803.0,88799.0,0.01842]
[1764024948263,0.02267983,88803.0,88802.0,0.03345]
[1764024948440,0.01126062,88805.0,88802.0,0.03345]
[1764024948639,0.54821761,88803.0,88802.0,0.03345]
[1764024949077,0.323,88803.0,88802.0,0.03345]
[1764024949623,0.323,88803.0,88802.0,0.01453]
[1764024952136,0.323,88803.0,88802.0,0.06332]
[1764024952990,0.323,88803.0,88802.0,0.06429758]
[1764024954169,0.323,88803.0,88802.0,0.03442758]
[1764024957486,0.323,88803.0,88802.0,0.01550758]
[1764024957888,0.323,88803.0,88802.0,0.03442758]
[1764024958232,0.323,88803.0,88802.0,0.01550758]
[1764024961092,0.34398395,88803.0,88802.0,0.01550758]
[1764024962817,0.56920156,88803.0,88802.0,0.00097758]
[1764024963689,0.56920156,88803.0,88802.0,0.01989758]
[1764024963895,0.56920156,88803.0,88802.0,0.00097758]
[1764024964876,0.34398395,88803.0,88802.0,0.00097758]
[1764024969857,0.323,88803.0,88802.0,0.00097758]
[1764024970271,0.323,88803.0,88802.0,0.04976758]
[1764024970481,0.323,88803.0,88802.0,0.01989758]
[1764024970976,0.323,88803.0,88802.0,0.00097758]
[1764024971539,0.323,88803.0,88802.0,0.01989758]
[1764024971937,0.23647496,88805.0,88802.0,0.01989758]
[1764024972142,0.04366793,88804.0,88802.0,0.01892]
[1764024972340,0.02267983,88804.0,88802.0,0.01892]
[1764024972761,0.02267983,88804.0,88803.0,0.00094702]
[1764024972965,0.04366785,88804.0,88803.0,0.00094702]
[1764024973726,0.02267983,88804.0,88803.0,0.00094702]
[1764024973932,0.02267983,88805.0,88803.0,0.00094702]
[1764024974148,0.02267983,88805.0,88798.0,0.02987]
[1764024974390,0.03394045,88805.0,88804.0,0.00091646]
[1764024974721,0.04366834,88805.0,88804.0,0.00091646]
[1764024981663,0.26888088,88805.0,88804.0,0.00091646]
[1764024981957,0.02098851,88805.0,88804.0,0.00091646]
[1764024982140,0.04366834,88805.0,88804.0,0.00091646]
[1764024982346,0.26888088,88805.0,88804.0,0.00091646]
[1764024982556,0.36666834,88805.0,88804.0,0.00091646]
[1764024982762,0.34398851,88805.0,88804.0,0.00091646]
[1764024985541,0.34398851,88805.0,88804.0,0.01939646]
[1764024987463,0.34398851,88805.0,88804.0,0.00091646]
[1764024990001,0.34398851,88805.0,88804.0,0.04588646]
[1764024990385,0.02098851,88805.0,88804.0,0.04588646]
[1764024990603,0.65431843,88820.0,88814.0,0.23644794]
[1764024990814,0.02097931,88819.0,88815.0,0.23644406]
[1764024990977,0.65431843,88824.0,88818.0,0.03169]
[1764024991178,2.0,88827.0,88823.0,0.03169]
[1764024991464,0.02096658,88826.0,88825.0,0.22516027]
[1764024991700,2.323,88832.0,88827.0,0.01848]
[1764024991899,0.02096967,88831.0,88830.0,0.01848]
[1764024992229,0.02979983,88837.0,88828.0,0.22515257]
[1764024992429,0.03385074,88831.0,88828.0,0.22515257]
[1764024992630,0.03385074,88831.0,88828.0,0.21991257]
[1764024993070,0.03385074,88831.0,88828.0,0.21891257]
[1764024993266,0.04540996,88831.0,88826.0,0.225157]
[1764024993483,0.04540996,88831.0,88826.0,0.02649]
[1764024993943,0.03385074,88831.0,88826.0,0.02649]
[1764024994389,0.323,88832.0,88830.0,0.01848]
[1764024994594,0.00114508,88856.0,88839.0,0.22512454]
[1764024994595,0.00712,88846.0,88839.0,0.22512454]
[1764024994791,0.03384719,88842.0,88840.0,0.02649]
[1764024994992,0.00011874,88843.0,88842.0,0.01321]
[1764024995150,0.03396593,88843.0,88842.0,0.01321]
[1764024995344,0.03396593,88843.0,88842.0,0.03169]
[1764024995549,0.00011874,88843.0,88842.0,0.05818]
[1764024996366,0.00111874,88843.0,88842.0,0.05818]
[1764024997621,0.00011874,88843.0,88842.0,0.05818]
[1764024999752,0.00011874,88843.0,88842.0,0.06818]
[1764024999949,0.00011874,88843.0,88842.0,0.10201424]
[1764025000827,0.00011874,88843.0,88842.0,0.10301424]
[1764025001027,0.00011874,88843.0,88842.0,0.10401424]
[1764025002917,0.00114508,88856.0,88842.0,0.10401424]
[1764025002918,0.00114508,88856.0,88853.0,0.01125454]
[1764025003088,0.00114508,88856.0,88855.0,0.119607]
[1764025003295,0.00114508,88856.0,88855.0,0.146097]
[1764025004590,0.00114508,88856.0,88855.0,0.147097]
[1764025005123,0.00114508,88856.0,88855.0,0.156097]
[1764025005564,0.00114508,88856.0,88855.0,0.157097]
[1764025005822,0.00114508,88856.0,88855.0,0.158097]
[1764025006776,0.0004,88880.0,88877.0,0.0112515]
[1764025006953,0.00079597,88880.0,88879.0,0.133767]
[1764025007295,0.00079597,88880.0,88879.0,0.160157]
[1764025007508,0.00079597,88880.0,88879.0,0.20397633]
[1764025008770,0.00079597,88880.0,88879.0,0.20497633]
[1764025009413,0.00079597,88880.0,88879.0,0.26749932]
[1764025009814,0.0027,88892.0,88891.0,0.22499465]
[1764025010020,0.00281869,88892.0,88891.0,0.26044465]
[1764025010227,0.00281869,88892.0,88891.0,0.28800465]
[1764025010420,0.00281869,88892.0,88891.0,0.32181964]
[1764025011120,0.00281869,88892.0,88891.0,0.32281964]
[1764025011361,0.00281869,88892.0,88891.0,0.32381964]
[1764025012338,0.00281869,88892.0,88891.0,0.38634263]
[1764025012560,0.0004,88900.0,88899.0,0.2349744]
[1764025012776,0.0004,88900.0,88899.0,0.2533044]
[1764025013143,0.0004,88900.0,88899.0,0.2808644]
[1764025013343,0.0004,88900.0,88899.0,0.29210945]
[1764025013558,0.0004,88900.0,88899.0,0.28922945]
[1764025013777,0.0004,88900.0,88899.0,0.28290945]
[1764025018000,0.0017424,88900.0,88899.0,0.27578945]
[1764025018349,0.0017424,88900.0,88899.0,0.28290945]
[1764025019275,0.0017424,88900.0,88899.0,0.28190945]
[1764025019477,0.0017424,88900.0,88899.0,0.27990945]
[1764025019678,0.0017424,88900.0,88899.0,0.28090945]
[1764025019872,0.0017424,88900.0,88899.0,0.28190945]
[1764025026618,0.0017424,88900.0,88899.0,0.27478945]
[1764025026779,0.0017424,88900.0,88899.0,0.28190945]
[1764025027910,0.0017424,88900.0,88899.0,0.27478945]
[1764025028138,0.0017424,88900.0,88899.0,0.28190945]
[1764025028338,0.02260173,88900.0,88899.0,0.28190945]
[1764025036349,0.65431843,88920.0,88912.0,0.01124707]
[1764025036556,0.01049428,88919.0,88912.0,0.01124707]
[1764025036750,0.01049428,88918.0,88913.0,0.0132]
[1764025036963,0.01049428,88917.0,88913.0,0.0132]
[1764025037191,0.01124631,88918.0,88913.0,0.0132]
[1764025037364,0.01049659,88917.0,88913.0,0.0132]
[1764025037583,0.01049659,88916.0,88913.0,0.0132]
[1764025037717,0.01124619,88919.0,88913.0,0.0132]
[1764025037917,0.01049621,88918.0,88913.0,0.0132]
[1764025038140,0.01049621,88917.0,88913.0,0.02444694]
[1764025038382,0.01049621,88916.0,88913.0,0.02444694]
[1764025038582,0.01049621,88915.0,88913.0,0.02444694]
[1764025038780,0.01124619,88919.0,88913.0,0.02444694]
[1764025039114,0.01049859,88918.0,88913.0,0.05186694]
[1764025039316,0.01049859,88917.0,88913.0,0.04062]
[1764025039492,0.01049859,88916.0,88914.0,0.02742]
[1764025039697,0.01049859,88915.0,88914.0,0.02742]
[1764025040055,0.02174478,88919.0,88914.0,0.04499]
[1764025040308,0.01049859,88918.0,88914.0,0.04499]
[1764025040509,0.01049859,88917.0,88913.0,0.02444694]
[1764025040709,0.01049859,88916.0,88915.0,0.02742]
[1764025041135,0.01049859,88916.0,88915.0,0.04499]
[1764025041420,0.01049859,88919.0,88915.0,0.04499]
[1764025041714,0.01049859,88918.0,88915.0,0.01757]
[1764025041918,0.01049859,88917.0,88915.0,0.01757]
[1764025042120,0.01049859,88916.0,88915.0,0.01757]
[1764025042332,0.00048794,88916.0,88915.0,0.01757]
[1764025042735,0.01098653,88916.0,88915.0,0.01757]
[1764025043501,0.01098653,88916.0,88915.0,0.04499]
[1764025045271,0.00048794,88916.0,88915.0,0.04499]
[1764025046255,0.00048794,88916.0,88915.0,0.01757]
[1764025046650,0.00048794,88916.0,88915.0,0.04499]
[1764025048172,0.22491551,88923.0,88915.0,0.01757]
[1764025048394,0.01124593,88921.0,88915.0,0.01757]
[1764025048599,0.03151143,88920.0,88915.0,0.01757]
[1764025048851,0.04275762,88919.0,88915.0,0.01757]
[1764025048993,0.02100762,88918.0,88915.0,0.01757]
[1764025049195,0.02100762,88917.0,88915.0,0.01757]
[1764025049391,0.02100762,88916.0,88915.0,0.01757]
[1764025050089,0.02100762,88916.0,88915.0,0.04499]
[1764025050730,0.02100762,88916.0,88915.0,0.01757]
[1764025052058,0.02100762,88916.0,88913.0,0.0132]
[1764025052255,0.02100762,88915.0,88913.0,0.04062]
[1764025052483,0.02100762,88914.0,88913.0,0.04062]
[1764025052619,0.02100762,88914.0,88913.0,0.0132]
[1764025052818,0.02100762,88914.0,88913.0,0.05819]
[1764025054142,0.0112477,88907.0,88901.0,0.00712]
[1764025054360,0.02100553,88906.0,88901.0,0.00011863]
[1764025054647,0.22496625,88903.0,88901.0,0.00011863]
[1764025054852,0.01124808,88904.0,88901.0,0.00011863]
[1764025055256,0.23621063,88904.0,88901.0,0.00011863]
[1764025055458,0.23621063,88904.0,88901.0,0.00111863]
[1764025056160,0.23621063,88904.0,88901.0,0.00211863]
[1764025056360,0.23621063,88904.0,88901.0,0.00111863]
[1764025056764,0.23621063,88904.0,88901.0,0.00211863]
[1764025057229,0.23621063,88904.0,88901.0,0.00111863]
[1764025058046,0.23602594,88904.0,88901.0,0.00111863]
[1764025058395,0.01106339,88904.0,88901.0,0.00111863]
[1764025060637,0.01106339,88904.0,88901.0,0.00011863]
[1764025068817,0.23620931,88905.0,88901.0,0.00011863]
[1764025069403,0.22496516,88903.0,88901.0,0.00011863]
[1764025070800,0.22496516,88903.0,88901.0,0.00111863]
[1764025072654,0.323,88914.0,88905.0,0.01124796]
[1764025072804,0.323,88914.0,88908.0,0.01422]
[1764025073012,0.33424682,88914.0,88908.0,0.01422]
[1764025073408,0.323,88914.0,88908.0,0.01422]
[1764025074119,0.22493885,88914.0,88908.0,0.01422]
[1764025074302,0.01124707,88912.0,88908.0,0.01422]
[1764025074713,0.3342472,88911.0,88908.0,0.01422]
[1764025075169,0.323,88911.0,88908.0,0.01422]
[1764025075607,0.3342472,88911.0,88908.0,0.01422]
[1764025075806,0.0112472,88911.0,88908.0,0.01422]
[1764025076235,0.33424707,88912.0,88908.0,0.01422]
[1764025076647,0.323,88912.0,88908.0,0.01422]
[1764025076854,0.33424656,88916.0,88908.0,0.01422]
[1764025077057,0.33424656,88916.0,88908.0,0.04116]
[1764025077222,0.01124669,88915.0,88908.0,0.04116]
[1764025077977,0.01124694,88913.0,88908.0,0.04116]
[1764025078531,0.33424694,88913.0,88908.0,0.04116]
[1764025078752,0.01124707,88912.0,88909.0,0.02694]
[1764025079501,0.01124707,88912.0,88911.0,0.01792]
[1764025080442,0.33424707,88912.0,88911.0,0.01792]
[1764025080817,0.01124758,88908.0,88897.0,0.02694]
[1764025081030,0.11237496,88905.0,88892.0,0.0112496]
[1764025081256,0.23620983,88904.0,88894.0,0.224987]
[1764025081455,0.23620983,88904.0,88894.0,0.01124935]
[1764025081750,0.22496681,88902.0,88893.0,0.00117474]
[1764025081953,0.54796681,88902.0,88893.0,0.00117474]
[1764025082381,0.56895406,88902.0,88893.0,0.00117474]
[1764025082654,2.56895406,88902.0,88893.0,0.00117474]
[1764025092584,2.56995406,88902.0,88893.0,0.00117474]
[1764025092784,2.78196934,88902.0,88893.0,0.00117474]
[1764025092987,2.61051005,88894.0,88893.0,0.00117474]
[1764025093318,2.6386173,88894.0,88893.0,0.00117474]
[1764025093456,2.65626753,88894.0,88893.0,0.00117474]
[1764025093662,2.68320753,88894.0,88893.0,0.00117474]
[1764025093911,2.73320753,88894.0,88893.0,0.00117474]
[1764025094516,2.68320753,88894.0,88893.0,0.00117474]
[1764025095458,2.68307267,88894.0,88893.0,0.00117474]
[1764025095781,2.68407267,88894.0,88893.0,0.00117474]
[1764025096199,2.73407267,88894.0,88893.0,0.00117474]
[1764025097254,2.68407267,88894.0,88893.0,0.00117474]
[1764025097478,2.74243392,88894.0,88893.0,0.00117474]
[1764025097676,2.74243392,88894.0,88852.0,0.01125467]
[1764025097677,0.01125365,88860.0,88852.0,0.01125467]
[1764025097881,0.0113514,88860.0,88854.0,0.01125441]
[1764025098078,9.775e-05,88860.0,88859.0,0.03014]
[1764025098512,9.775e-05,88860.0,88859.0,0.05739]
[1764025099984,9.775e-05,88860.0,88859.0,0.05839]
[1764025100192,9.775e-05,88860.0,88859.0,0.03114]
[1764025100849,9.775e-05,88860.0,88859.0,0.05839]
[1764025103288,9.775e-05,88860.0,88859.0,0.03217767]
[1764025103409,9.775e-05,88860.0,88859.0,0.01454767]
[1764025104969,9.775e-05,88860.0,88859.0,0.05942767]
[1764025105370,9.775e-05,88860.0,88859.0,0.01454767]
[1764025105512,0.22506555,88863.0,88859.0,0.01454767]
[1764025105716,0.0112534,88862.0,88859.0,0.01351]
[1764025105954,0.22507221,88861.0,88859.0,0.01351]
[1764025106163,0.22507221,88861.0,88859.0,0.001]
[1764025106415,0.22507221,88861.0,88860.0,0.00100713]
[1764025107532,0.23632309,88862.0,88860.0,0.00100713]
[1764025107739,0.23632309,88862.0,88859.0,0.001]
[1764025107879,0.23632309,88862.0,88861.0,0.0009766]
[1764025109301,0.23632309,88862.0,88861.0,0.0019766]
[1764025111774,0.0112534,88862.0,88861.0,0.0019766]
[1764025112939,0.0112534,88862.0,88861.0,0.0014766]
[1764025113852,0.01125302,88865.0,88861.0,0.0014766]
[1764025114063,0.23631616,88864.0,88861.0,0.001]
[1764025115036,0.0112534,88862.0,88856.0,0.02113447]
[1764025115226,0.23631616,88864.0,88856.0,0.02113447]
[1764025115431,0.01125327,88863.0,88861.0,0.001]
[1764025116153,0.01125327,88863.0,88856.0,0.03238863]
[1764025116356,0.01125315,88864.0,88857.0,0.01125403]
[1764025116568,0.01125327,88863.0,88856.0,0.03338863]
[1764025116775,0.01125327,88863.0,88856.0,0.03238863]
[1764025117103,0.01125327,88863.0,88861.0,0.001]
[1764025117275,0.23632075,88863.0,88861.0,0.001]
[1764025117677,0.01125315,88864.0,88861.0,0.001]
[1764025117837,0.01125315,88864.0,88861.0,0.01351]
[1764025118016,0.01125302,88865.0,88861.0,0.01351]
[1764025118221,0.01125315,88864.0,88861.0,0.01351]
[1764025118756,0.01125315,88864.0,88861.0,0.01251]
[1764025119421,0.01125302,88865.0,88861.0,0.01251]
[1764025119631,0.22506555,88863.0,88861.0,0.01251]
[1764025119865,0.01125315,88864.0,88861.0,0.01351]
[1764025120267,0.22506555,88863.0,88861.0,0.01351]
[1764025120886,0.323,88867.0,88862.0,0.04488]
[1764025121090,0.424127,88870.0,88866.0,0.01251]
[1764025121302,0.02093372,88869.0,88866.0,0.03014]
[1764025121532,0.02093372,88868.0,88866.0,0.05739]
[1764025121737,0.02093372,88867.0,88866.0,0.05739]
[1764025121901,0.02093372,88869.0,88866.0,0.05739]
[1764025122106,0.03218623,88869.0,88866.0,0.05739]
[1764025122323,0.02093372,88868.0,88866.0,0.05739]
[1764025122726,0.02093372,88867.0,88866.0,0.05739]
[1764025122900,0.01125251,88869.0,88866.0,0.05739]
[1764025122901,0.02093372,88868.0,88866.0,0.05739]
[1764025123478,0.02093372,88868.0,88867.0,0.01763]
[1764025123690,0.02093372,88868.0,88867.0,0.04488]
[1764025124292,0.02093372,88870.0,88867.0,0.04488]
[1764025124508,0.02093372,88869.0,88868.0,0.02631]
[1764025124911,0.323,88879.0,88874.0,0.01125188]
[1764025125113,0.02096801,88878.0,88875.0,0.03886]
[1764025125312,0.02096801,88877.0,88875.0,0.03886]
[1764025125518,0.02096801,88876.0,88875.0,0.2375848]
[1764025125723,0.6533514,88890.0,88880.0,0.2250225]
[1764025125923,0.0209699,88889.0,88888.0,0.01255]
[1764025126370,0.3439699,88889.0,88888.0,0.05631]
[1764025126569,0.3439699,88889.0,88888.0,0.03]
[1764025126773,0.3439699,88889.0,88888.0,0.05631]
[1764025127028,0.0209699,88889.0,88888.0,0.05631]
[1764025127858,0.00091212,88891.0,88888.0,0.05631]
[1764025128054,0.00091212,88891.0,88890.0,0.01745]
[1764025128687,0.34797699,88891.0,88890.0,0.01745]
[1764025129271,0.32703377,88891.0,88890.0,0.01745]
[1764025129469,0.32703377,88891.0,88890.0,0.01845]
[1764025129900,0.34797356,88891.0,88890.0,0.01845]
[1764025130106,2.67809356,88891.0,88890.0,0.001]
[1764025130355,2.82297851,88891.0,88890.0,0.001]
[1764025130502,2.82297851,88891.0,88875.0,0.00011869]
[1764025130503,2.54803262,88876.0,88875.0,0.00011869]
[1764025130701,2.67721941,88876.0,88875.0,0.00011869]
[1764025131004,2.67721941,88876.0,88837.0,0.01234]
[1764025131005,2.54805035,88869.0,88838.0,0.01234]
[1764025131212,0.01125707,88833.0,88815.0,0.01234]
[1764025131413,0.22516196,88825.0,88823.0,9.775e-05]
[1764025131823,2.0,88824.0,88823.0,9.775e-05]
[1764025132205,2.0,88824.0,88823.0,0.00147188]
[1764025132812,2.0,88824.0,88823.0,0.00247188]
[1764025133034,2.0,88825.0,88823.0,0.00247188]
[1764025133154,2.0,88825.0,88823.0,9.775e-05]
[1764025133363,2.0,88826.0,88824.0,0.00134358]
[1764025133594,1.54310255,88833.0,88825.0,0.01647]
[1764025133595,0.323,88832.0,88825.0,0.01647]
[1764025133794,0.101127,88847.0,88834.0,0.01125695]
[1764025133997,0.0208866,88846.0,88845.0,0.01647]
[1764025134217,0.6533514,88855.0,88845.0,0.01125555]
[1764025134386,0.02088137,88854.0,88852.0,0.22509142]
[1764025134607,0.01647,88869.0,88858.0,0.01125391]
[1764025134810,0.01837213,88872.0,88858.0,0.01125391]
[1764025134811,0.02088443,88868.0,88858.0,0.2250777]
[1764025135010,0.02088443,88867.0,88860.0,0.23632679]
[1764025135216,0.74250982,88870.0,88869.0,0.01647]
[1764025135421,2.0,88881.0,88870.0,0.22504782]
[1764025135618,2.0,88879.0,88875.0,0.02881]
[1764025135779,0.76339708,88880.0,88875.0,0.02881]
[1764025135780,0.101127,88877.0,88875.0,0.01234]
[1764025135980,0.101127,88877.0,88876.0,0.02622]
[1764025136233,0.44501727,88877.0,88876.0,0.04269]
[1764025136502,0.424127,88877.0,88876.0,0.04269]
[1764025136683,0.323,88877.0,88876.0,0.01647]
[1764025137850,0.74250982,88886.0,88877.0,0.22503009]
[1764025138050,0.323,88884.0,88877.0,0.22503009]
[1764025138272,0.323,88884.0,88878.0,0.02622]
[1764025138486,0.75376018,88886.0,88883.0,0.01647]
[1764025138487,0.74250982,88886.0,88883.0,0.01647]
[1764025138710,0.00114451,88890.0,88885.0,0.01647]
[1764025138883,0.00154018,88890.0,88889.0,0.01647]
[1764025139526,0.00154018,88890.0,88889.0,0.04269]
[1764025141971,0.00154018,88890.0,88889.0,0.26768971]
[1764025142178,0.00154018,88890.0,88889.0,0.01647]
[1764025142379,0.00154018,88890.0,88883.0,0.01234]
[1764025142592,0.01125023,88887.0,88875.0,0.01234]
[1764025142813,0.0112515,88877.0,88860.0,0.02622]
[1764025143031,0.0112515,88877.0,88858.0,0.01125391]
[1764025143032,0.01125264,88868.0,88856.0,0.03383131]
[1764025143232,0.01125429,88855.0,88850.0,0.01234]
[1764025143435,0.01125454,88853.0,88850.0,0.01234]
[1764025143641,0.23634654,88853.0,88850.0,0.01234]
[1764025144058,0.23634707,88855.0,88828.0,0.01234]
[1764025144059,0.01125644,88838.0,88828.0,0.01234]
[1764025144315,0.0112572,88832.0,88828.0,0.01234]
[1764025144545,0.74250982,88838.0,88831.0,0.01647]
[1764025144783,0.74250982,88838.0,88837.0,0.01647]
[1764025144947,0.01125593,88842.0,88837.0,0.01647]
[1764025145292,0.01125593,88842.0,88833.0,0.01125707]
[1764025145493,0.01125581,88843.0,88832.0,0.0112572]
[1764025145693,0.01125581,88843.0,88832.0,0.0374772]
[1764025145922,0.00712,88844.0,88832.0,0.0374772]
[1764025145923,0.24348983,88844.0,88842.0,0.01647]
[1764025146124,0.00712,88844.0,88843.0,0.02881]
[1764025146329,0.323,88845.0,88843.0,0.02881]
[1764025146539,0.74250982,88853.0,88843.0,0.02881]
[1764025146540,2.0,88859.0,88849.0,0.22509971]
[1764025146777,0.74250982,88860.0,88851.0,0.01125479]
[1764025146778,0.323,88856.0,88851.0,0.01125479]
[1764025147010,0.323,88856.0,88852.0,0.02250934]
[1764025147252,0.323,88856.0,88855.0,0.02881]
[1764025147652,0.323,88856.0,88855.0,0.07753858]
[1764025147878,0.323,88856.0,88830.0,0.74250982]
[1764025147879,0.01125403,88857.0,88843.0,0.03856]
[1764025148083,0.323,88863.0,88830.0,0.00712]
[1764025148084,0.01125593,88842.0,88830.0,0.00712]
[1764025148281,0.0112572,88832.0,88820.0,0.01284]
[1764025148495,2.22514662,88831.0,88830.0,9.775e-05]
[1764025148735,0.22514662,88831.0,88830.0,9.775e-05]
[1764025149141,2.22514662,88831.0,88830.0,9.775e-05]
[1764025149355,2.54814662,88831.0,88830.0,9.775e-05]
[1764025149556,0.54814662,88831.0,88830.0,0.00109775]
[1764025149797,0.54814662,88831.0,88830.0,0.00225804]
[1764025149999,0.54814662,88831.0,88830.0,0.00325804]
[1764025150352,0.54814662,88831.0,88830.0,0.00225804]
[1764025150777,0.54814662,88831.0,88830.0,0.00125804]
[1764025151047,0.323,88831.0,88830.0,0.00125804]
[1764025151255,0.323,88831.0,88830.0,0.04394804]
[1764025151468,0.74250982,88850.0,88834.0,0.01125695]
[1764025151701,0.74250982,88850.0,88849.0,0.02881]
[1764025151702,1.06550982,88850.0,88849.0,0.02881]
[1764025151879,0.323,88850.0,88849.0,0.02881]
[1764025152020,0.00712,88854.0,88849.0,0.02881]
[1764025152224,0.01125467,88852.0,88849.0,0.05503]
[1764025152424,0.33012,88854.0,88849.0,0.03856]
[1764025152623,0.323,88854.0,88853.0,0.01647]
[1764025152843,0.25888904,88870.0,88853.0,0.01647]
[1764025152844,0.22502736,88879.0,88857.0,0.01125403]
[1764025153047,0.74250982,88880.0,88872.0,0.22504246]
[1764025153276,0.74250982,88880.0,88872.0,0.22504128]
[1764025153473,0.74250982,88880.0,88879.0,0.01647]
[1764025153678,0.00712,88882.0,88879.0,0.02881]
[1764025154161,0.00712,88882.0,88855.0,0.01125429]
[1764025154162,0.01125277,88867.0,88855.0,0.01125429]
[1764025154273,0.101127,88866.0,88854.0,0.2583175]
[1764025154484,0.01125403,88857.0,88849.0,0.01234]
[1764025154687,0.01125467,88852.0,88849.0,0.01234]
[1764025154897,0.01125467,88852.0,88840.0,0.01125619]
[1764025154898,0.01125555,88845.0,88840.0,0.01883783]
[1764025155099,0.01125593,88842.0,88838.0,0.01379]
[1764025155542,0.01125593,88842.0,88830.0,0.03216745]
[1764025155543,0.01125657,88837.0,88830.0,0.01379]
[1764025155745,0.22514662,88831.0,88830.0,0.01388775]
[1764025156551,0.22514662,88831.0,88830.0,9.775e-05]
[1764025156754,2.54814662,88831.0,88830.0,9.775e-05]
[1764025159524,0.54814662,88831.0,88830.0,9.775e-05]
[1764025159963,0.54814662,88831.0,88830.0,0.00125804]
[1764025161822,2.54814662,88831.0,88830.0,0.00125804]
[1764025165184,2.61066961,88831.0,88830.0,0.00125804]
[1764025165388,2.63147997,88831.0,88830.0,0.00125804]
[1764025165589,2.40633335,88831.0,88830.0,0.01795804]
[1764025165789,0.323,88831.0,88830.0,0.01795804]
[1764025165992,0.323,88831.0,88830.0,0.04406804]
[1764025166597,0.74962982,88840.0,88830.0,0.04406804]
[1764025166598,0.00712,88840.0,88832.0,0.0112572]
[1764025166779,0.00712,88840.0,88839.0,0.03049]
[1764025166976,0.00712,88840.0,88839.0,0.03137539]
[1764025167163,0.101127,88852.0,88839.0,0.05748539]
[1764025167364,0.02082019,88851.0,88842.0,0.0167]
[1764025167564,0.101127,88852.0,88842.0,0.0167]
[1764025167766,0.34382289,88851.0,88842.0,0.0167]
[1764025167974,0.13003949,88852.0,88842.0,0.0167]
[1764025168177,0.02082487,88851.0,88842.0,0.0167]
[1764025168379,0.323,88851.0,88842.0,0.0167]
[1764025169618,0.323,88851.0,88820.0,0.02661]
[1764025169619,0.01125581,88843.0,88820.0,0.02661]
[1764025169834,0.33752109,88835.0,88820.0,0.0005]
[1764025170032,0.01125707,88833.0,88820.0,0.0005]
[1764025170289,2.22514409,88832.0,88820.0,0.0005]
[1764025170577,2.323,88831.0,88820.0,0.0005]
[1764025170782,2.40636146,88831.0,88820.0,0.0005]
[1764025171926,2.40736146,88831.0,88820.0,0.0005]
[1764025173303,2.40836146,88831.0,88820.0,0.0005]
[1764025173651,2.40836146,88831.0,88830.0,0.00125804]
[1764025178166,2.42602356,88831.0,88830.0,0.00125804]
[1764025178377,2.40836146,88831.0,88830.0,0.00125804]
[1764025179946,2.61069496,88821.0,88820.0,0.0005]